Workbook

Sheet Sheet1
A4: INSTRUCTIONS: Use this form when a single information collection document involves multiple reporting and recordkeeping requirements. The totals of the figures in cols. should be entered in item 13 of OMB-83-I: cols. (D) &/or (I) = 13a (respondent is only counted once); cols. F & I = 13b; cols. H & K = 13c. (F)Total/(D)Total = (E)Average (H)Total/(F)Total = (G)Average (K)Total/(I)Total = (J)Average NOTE: The columns will calculate automatically. If Col. E's response is something other than annually, i.e., 1/6 years, list as "1/6" & decimal will display. | I4: TITLE OF INFORMATION COLLECTION DOCUMENT | N4: OMB NO.
I6: Rural Community Development Inititive | N6: 0575-0180
N9: DATE PREPARED
N11: Rev. 4/2/15
A13: IDENTIFICATION OF REPORTING OR RECORDKEEPING REQUIREMENT | H13: ANNUAL BURDEN
H15: REPORTS | M15: RECORDS | P15: RESPONDENT COST
O17: TOTAL
G18: FORMS NO (S) | H18: NO. OF | I18: NO OF | J18: TOTAL ANNUAL | K18: HOURS | L18: TOTAL | M18: NO. OF | N18: ANNUAL | O18: RECORD- | P18: COST | Q18: TOTAL
A19: SECTION OF | B19: DESCRIPTION | G19: (If "none" | H19: RESPONDENTS | I19: RESPONSES | J19: RESPONSES | K19: PER | L19: HOURS | M19: RECORD- | N19: HOURS PER | O19: KEEPING HOURS | P19: PER | Q19: COST
A20: NOTICE | G20: so state) | I20: PER | J20: (Col. D x E) | K20: RESPONSE | L20: (Col. F x G) | M20: KEEPERS | N20: RECORD- | O20: (Col. I x J) | P20: HOUR | Q20: (Col. H x L)
I21: RESPONDENT | N21: KEEPER
A22: (A) | B22: (B) | G22: (C) | H22: (D) | I22: (E) | J22: (F) | K22: (G) | L22: (H) | M22: (I) | N22: (J) | O22: (K) | P22: (L) | Q22: (M)
B23: Reporting Requirements - Forms
A24: Contents of Application | B24: Certification Regarding Debarment, Suspension & Other Responsibility Matters - Primary Covered Transactions | G24: AD-1047 or in writing | H24: 110 | I24: 1.00 | J24: =SUM(H24*I24) -> 110.00 | K24: 0.25 | L24: =SUM(J24*K24) -> 27.50 | O24: =SUM(M24*N24) -> 0.00 | P24: $65.00 | Q24: =SUM(L24*P24) -> $1,787.50
B25: Certification Regarding Debarment, Ineligibility & Voluntary Exclusion - Lower Tier Covered Transactions | G25: AD-1048 or in writing | H25: 110 | I25: 1.00 | J25: 110.00 | K25: 0.25 | L25: 27.50 | O25: 0.00 | P25: $65.00 | Q25: =SUM(L25*P25) -> $1,787.50
B26: Certification Regarding Drug-Free Workplace Requirements (Grants) Alternative I - for Grantees other than Individuals | G26: AD-1049 | H26: 110 | I26: 1.00 | J26: 110.00 | K26: 0.25 | L26: 27.50 | O26: 0.00 | P26: $65.00 | Q26: $1,787.50
B27: Equal Opportunity Agreement | G27: RD 400-1 (0575-0018 form app'd) | H27: 110 | I27: 1.00 | J27: 110.00 | K27: 0.17 | L27: 18.70 | O27: 0.00 | P27: $65.00 | Q27: $1,215.50
B28: Assurance Agreement | G28: RD 400-4 (0575-0018 form app'd) | H28: 110 | I28: 1.00 | J28: 110.00 | K28: 0.25 | L28: 27.50 | O28: 0.00 | P28: $65.00 | Q28: $1,787.50
B29: Statement of Budget, Income and Equity | G29: RD 442-2 (0575-0015 form app'd) | H29: 110 | I29: 1.00 | J29: 110.00 | K29: 2.50 | L29: 275.00 | O29: 0.00 | P29: $65.00 | Q29: $17,875.00
B30: Balance Sheet | G30: RD 442-3 (0575-0015 form app'd) | H30: 110 | I30: 1.00 | J30: 110.00 | K30: 1.00 | L30: 110.00 | O30: 0.00 | P30: $65.00 | Q30: $7,150.00
B31: SUBTOTAL | J31: =SUM(J23:J30) -> 770.00 | L31: =SUM(L23:L30) -> 513.70 | M31: =SUM(M23:M30) -> 0.00 | O31: =SUM(O23:O30) -> 0.00 | Q31: =SUM(Q23:Q30) -> $33,390.50
B32: TOTAL OF ALL PAGES | J32: =J31+J61+J67+J94 -> 4,400.00 | L32: =SUM(L31+L61+L67+L94) -> 5,556.20 | M32: =SUM(M31+M67+M101+M130+M159+M188+M217+M246+M275+M304+M333+M362+M391+M420+M449+M478+M507+M536+M565+M594+M623+M652+M681+M710+M739+M768+M797+M826+M855+M884+M913+M942+M971+M1000+M1029+M1058+M1087+M1116+M1145+M1174+M1203+M1232+M1261+M1290+M1319+M1348+M1377+M1406+M1435+M1464+M1493+M1522+M1551+M1580+M1609+M1638+M1667+M1696+M1725+M1754) -> 0.00 | O32: =SUM(O31+O67+O101+O130+O159+O188+O217+O246+O275+O304+O333+O362+O391+O420+O449+O478+O507+O536+O565+O594+O623+O652+O681+O710+O739+O768+O797+O826+O855+O884+O913+O942+O971+O1000+O1029+O1058+O1087+O1116+O1145+O1174+O1203+O1232+O1261+O1290+O1319+O1348+O1377+O1406+O1435+O1464+O1493+O1522+O1551+O1580+O1609+O1638+O1667+O1696+O1725+O1754) -> 0.00 | Q32: =SUM(Q31+Q61+Q67+Q94+Q96) -> $361,153.00
A33: TOTAL - COLUMNS "F" AND "I" = OMB 831, 13 b; COLUMNS "H" AND "K" = OMB 831, 13c | J33: =SUM(J32+M32) -> 4,400.00 | L33: =SUM(L32+O32) -> 5,556.20
A37: INSTRUCTIONS: Use this form when a single information collection document involves multiple reporting and recordkeeping requirements. The totals of the figures in cols. should be entered in item 13 of OMB-83-1: cols. (D) &/or (I) = 13a (respondent is only counted once); cols. F & I = 13b; cols. H & K = 13c. (F)Total/(D)Total = (E)Average (H)Total/(F)Total = (G)Average (K)Total/(I)Total = (J)Average NOTE: The columns will calculate automatically. If Col. E's response is something other than annually, i.e., 1/6 years, list as "1/6" & decimal will display. | I37: TITLE OF INFORMATION COLLECTION DOCUMENT | N37: OMB NO.
I39: Rural Community Development Initiative | N39: 0575-0180
N42: DATE PREPARED
N44: Rev. 4/2/15
A46: IDENTIFICATION OF REPORTING OR RECORDKEEPING REQUIREMENT | H46: ANNUAL BURDEN
H48: REPORTS | M48: RECORDS | P48: RESPONDENT COST
O50: TOTAL
G51: FORMS NO (S) | H51: NO. OF | I51: NO OF | J51: TOTAL ANNUAL | K51: HOURS | L51: TOTAL | M51: NO. OF | N51: ANNUAL | O51: RECORD- | P51: COST | Q51: TOTAL
A52: SECTION OF | B52: DESCRIPTION | G52: (If "none" | H52: RESPONDENTS | I52: RESPONSES | J52: RESPONSES | K52: PER | L52: HOURS | M52: RECORD- | N52: HOURS PER | O52: KEEPING HOURS | P52: PER | Q52: COST
A53: NOTICE | G53: so state) | I53: PER | J53: (Col. D x E) | K53: RESPONSE | L53: (Col. F x G) | M53: KEEPERS | N53: RECORD- | O53: (Col. I x J) | P53: HOUR | Q53: (Col. H x L)
I54: RESPONDENT | N54: KEEPER
A55: (A) | B55: (B) | G55: (C) | H55: (D) | I55: (E) | J55: (F) | K55: (G) | L55: (H) | M55: (I) | N55: (J) | O55: (K) | P55: (L) | Q55: (M)
B56: Reporting Requirements - Non-Forms Applicants
B57: Association or Relationship with Rural Development Employees | G57: Written | H57: 110 | I57: 1.00 | J57: =H57*I57 -> 110.00 | K57: 0.25 | L57: =SUM(J57*K57) -> 27.50 | O57: =SUM(M57*N57) -> 0.00 | P57: $65.00 | Q57: =SUM(L57*P57) -> $1,787.50
B58: Data Universal Number System (DUNS) and System for Award Management System (SAM) | G58: Written | H58: 110 | I58: 1.00 | J58: =H58*I58 -> 110.00 | K58: 0.25 | L58: =J58*K58 -> 27.50 | O58: 0.00 | P58: $65.00 | Q58: =L58*P58 -> $1,787.50
A59: Contents of Application | B59: Certification of Non-Lobbying Activities | G59: Written | H59: 110 | I59: 1.00 | J59: =SUM(H59*I59) -> 110.00 | K59: 0.25 | L59: =SUM(J59*K59) -> 27.50 | O59: =SUM(M59*N59) -> 0.00 | P59: $65.00 | Q59: =SUM(L59*P59) -> $1,787.50
B60: Application Narrative | G60: Written | H60: 110 | I60: 1.00 | J60: =SUM(H60*I60) -> 110.00 | K60: 10.00 | L60: =SUM(J60*K60) -> 1,100.00 | O60: =SUM(M60*N60) -> 0.00 | P60: $65.00 | Q60: =SUM(L60*P60) -> $71,500.00
B61: SUBTOTAL | J61: =J57+J58+J59+J60 -> 440.00 | L61: =L57+L58+L59+L60 -> 1,182.50 | Q61: =Q57+Q58+Q59+Q60 -> $76,862.50
B62: Reporting Requirements - Non-Forms Awardees/Grantees
A63: Grant Amounts | B63: Modification of Application for Reduced Grant Amount | G63: Written | H63: 20 | I63: 1.00 | J63: =SUM(H63*I63) -> 20.00 | K63: 1.00 | L63: =SUM(J63*K63) -> 20.00 | O63: =SUM(M63*N63) -> 0.00 | P63: $65.00 | Q63: =SUM(L63*P63) -> $1,300.00
B64: Project Performance Report - Quarterly | G64: Written | H64: 105 | I64: 4.00 | J64: =SUM(H64*I64) -> 420.00 | K64: 1.00 | L64: =SUM(J64*K64) -> 420.00 | O64: =SUM(M64*N64) -> 0.00 | P64: $65.00 | Q64: =SUM(L64*P64) -> $27,300.00
B65: Financial Reporting | G65: Written | H65: 105 | I65: 12.00 | J65: 1,260.00 | K65: 1.00 | L65: 1,260.00 | O65: 0.00 | P65: $65.00 | Q65: =SUM(L65*P65) -> $81,900.00
B66: Financial Management System | G66: Written | H66: 105 | I66: 1.00 | J66: 105.00 | K66: 6.00 | L66: 630.00 | O66: 0.00 | P66: $65.00 | Q66: $40,950.00
B67: SUBTOTAL | J67: =SUM(J63:J66) -> 1,805.00 | L67: =SUM(L63:L66) -> 2,330.00 | M67: =SUM(M63:M66) -> 0 | O67: =SUM(O63:O66) -> 0.00 | Q67: =SUM(Q63:Q66) -> $151,450.00
A71: INSTRUCTIONS: Use this form when a single information collection document involves multiple reporting and recordkeeping requirements. The totals of the figures in cols. should be entered in item 13 of OMB-83-1: cols. (D) &/or (I) = 13a (respondent is only counted once); cols. F & I = 13b; cols. H & K = 13c. (F)Total/(D)Total = (E)Average (H)Total/(F)Total = (G)Average (K)Total/(I)Total = (J)Average NOTE: The columns will calculate automatically. If Col. E's response is something other than annually, i.e., 1/6 years, list as "1/6" & decimal will display. | I71: TITLE OF INFORMATION COLLECTION DOCUMENT | N71: OMB NO.
I73: Rural Community Development Initiative | N73: 0575-0180
N76: DATE PREPARED
N78: Rev. 4/2/15
A80: IDENTIFICATION OF REPORTING OR RECORDKEEPING REQUIREMENT | H80: ANNUAL BURDEN
H82: REPORTS | M82: RECORDS | P82: RESPONDENT COST
O84: TOTAL
G85: FORMS NO (S) | H85: NO. OF | I85: NO OF | J85: TOTAL ANNUAL | K85: HOURS | L85: TOTAL | M85: NO. OF | N85: ANNUAL | O85: RECORD- | P85: COST | Q85: TOTAL
A86: SECTION OF | B86: DESCRIPTION | G86: (If "none" | H86: RESPONDENTS | I86: RESPONSES | J86: RESPONSES | K86: PER | L86: HOURS | M86: RECORD- | N86: HOURS PER | O86: KEEPING HOURS | P86: PER | Q86: COST
A87: REGS. | G87: so state) | I87: PER | J87: (Col. D x E) | K87: RESPONSE | L87: (Col. F x G) | M87: KEEPERS | N87: RECORD- | O87: (Col. I x J) | P87: HOUR | Q87: (Col. H x L)
I88: RESPONDENT | N88: KEEPER
A89: (A) | B89: (B) | G89: (C) | H89: (D) | I89: (E) | J89: (F) | K89: (G) | L89: (H) | M89: (I) | N89: (J) | O89: (K) | P89: (L) | Q89: (M)
B90: Reporting Req. - Non-Forms Awardees/Grantees cont'd
A91: Contents of Application | B91: Audits (over $500,000) | G91: Written | H91: 20 | I91: 1.00 | J91: =SUM(H91*I91) -> 20.00 | K91: 3.00 | L91: =SUM(J91*K91) -> 60.00 | O91: =SUM(M91*N91) -> 0.00 | P91: $65.00 | Q91: =SUM(L91*P91) -> $3,900.00
B92: Data Collection by Race, Sex and National Origin -- Intermediaries - 35 -- Recipients & Benefciaries- 1,225 | G92: Written | H92: 1,260 | I92: 1.00 | J92: 1,260.00 | K92: 1.00 | L92: 1,260.00 | O92: 0.00 | P92: $65.00 | Q92: =SUM(L92*P92) -> $81,900.00
B93: Final Project Performance Report | G93: Written | H93: 105 | I93: 1.00 | J93: 105.00 | K93: 2.00 | L93: 210.00 | O93: 0.00 | P93: $65.00 | Q93: $13,650.00
B94: SUBTOTAL | J94: =SUM(J91:J93) -> 1,385.00 | L94: =SUM(L91:L93) -> 1,530.00 | M94: =SUM(M84:M93) -> 0 | O94: =SUM(O84:O93) -> 0.00 | Q94: =SUM(Q91:Q93) -> $99,450.00
B95: Reporting Req. - Form Burden Approved under other OMB Numbers
A96: Contents of Application | B96: Application for Federal Assistance (Common Form - burden reported under RCF) | G96: SF-424 (4040-0004) | H96: 110 | I96: 1.00 | J96: 110.00 | K96: 0.75 | L96: 82.50 | O96: 0.00 | Q96: $0.00
B97: Assurances -- Non-Construction Programs | G97: SF-424-B (4040-0007) | H97: 110 | J97: =SUM(H97*I97) -> 0.00 | L97: =SUM(J97*K97) -> 0.00 | O97: =SUM(M97*N97) -> 0.00 | Q97: =SUM(L97*P97) -> $0.00
B98: Disclosure of Lobbying Activities | G98: SF-LLL (4040-0013) | H98: 110 | J98: 0.00 | L98: 0.00 | O98: 0.00 | Q98: $0.00
A99: Grantee Req. | B99: Request for Advance or Reimbursement | G99: SF-270 (4040-0012) | H99: 105 | J99: 0.00 | L99: 0.00 | O99: 0.00 | Q99: $0.00
J100: 0.00 | L100: 0.00 | O100: 0.00 | Q100: $0.00
A105: INSTRUCTIONS: Use this form when a single information collection document involves multiple reporting and recordkeeping requirements. The totals of the figures in cols. should be entered in item 13 of OMB-83-1: cols. (D) &/or (I) = 13a (respondent is only counted once); cols. F & I = 13b; cols. H & K = 13c. (F)Total/(D)Total = (E)Average (H)Total/(F)Total = (G)Average (K)Total/(I)Total = (J)Average NOTE: The columns will calculate automatically. If Col. E's response is something other than annually, i.e., 1/6 years, list as "1/6" & decimal will display. | I105: TITLE OF INFORMATION COLLECTION DOCUMENT | N105: OMB NO.
N107: 0563-New
N110: DATE PREPARED
A114: IDENTIFICATION OF REPORTING OR RECORDKEEPING REQUIREMENT | H114: ANNUAL BURDEN
H116: REPORTS | M116: RECORDS | P116: RESPONDENT COST
O118: TOTAL
G119: FORMS NO (S) | H119: NO. OF | I119: NO OF | J119: TOTAL ANNUAL | K119: HOURS | L119: TOTAL | M119: NO. OF | N119: ANNUAL | O119: RECORD- | P119: COST | Q119: TOTAL
A120: SECTION OF | B120: DESCRIPTION | G120: (If "none" | H120: RESPONDENTS | I120: RESPONSES | J120: RESPONSES | K120: PER | L120: HOURS | M120: RECORD- | N120: HOURS PER | O120: KEEPING HOURS | P120: PER | Q120: COST
A121: REGS. | G121: so state) | I121: PER | J121: (Col. D x E) | K121: RESPONSE | L121: (Col. F x G) | M121: KEEPERS | N121: RECORD- | O121: (Col. I x J) | P121: HOUR | Q121: (Col. H x L)
I122: RESPONDENT | N122: KEEPER
A123: (A) | B123: (B) | G123: (C) | H123: (D) | I123: (E) | J123: (F) | K123: (G) | L123: (H) | M123: (I) | N123: (J) | O123: (K) | P123: (L) | Q123: (M)
J124: =SUM(H124*I124) -> 0.00 | L124: =SUM(J124*K124) -> 0.00 | O124: =SUM(M124*N124) -> 0.00 | Q124: =SUM(L124*P124) -> $0.00
J125: 0.00 | L125: 0.00 | O125: 0.00 | Q125: =SUM(L125*P125) -> $0.00
J126: 0.00 | L126: 0.00 | O126: 0.00 | Q126: $0.00
J127: 0.00 | L127: 0.00 | O127: 0.00 | Q127: $0.00
J128: 0.00 | L128: 0.00 | O128: 0.00 | Q128: $0.00
J129: 0.00 | L129: 0.00 | O129: 0.00 | Q129: $0.00
B130: SUBTOTAL | J130: =SUM(J124:J129) -> 0.00 | L130: =SUM(L124:L129) -> 0.00 | M130: =SUM(M124:M129) -> 0 | O130: =SUM(O124:O129) -> 0.00 | Q130: =SUM(Q124:Q129) -> $0.00
A134: INSTRUCTIONS: Use this form when a single information collection document involves multiple reporting and recordkeeping requirements. The totals of the figures in cols. should be entered in item 13 of OMB-83-1: cols. (D) &/or (I) = 13a (respondent is only counted once); cols. F & I = 13b; cols. H & K = 13c. (F)Total/(D)Total = (E)Average (H)Total/(F)Total = (G)Average (K)Total/(I)Total = (J)Average NOTE: The columns will calculate automatically. If Col. E's response is something other than annually, i.e., 1/6 years, list as "1/6" & decimal will display. | I134: TITLE OF INFORMATION COLLECTION DOCUMENT | N134: OMB NO.
N136: 0563-New
N139: DATE PREPARED
A143: IDENTIFICATION OF REPORTING OR RECORDKEEPING REQUIREMENT | H143: ANNUAL BURDEN
H145: REPORTS | M145: RECORDS
O147: TOTAL
G148: FORMS NO (S) | H148: NO. OF | I148: NO OF | J148: TOTAL ANNUAL | K148: HOURS | L148: TOTAL | M148: NO. OF | N148: ANNUAL | O148: RECORD-
A149: SECTION OF | B149: DESCRIPTION | G149: (If "none" | H149: RESPONDENTS | I149: RESPONSES | J149: RESPONSES | K149: PER | L149: HOURS | M149: RECORD- | N149: HOURS PER | O149: KEEPING HOURS
A150: REGS. | G150: so state) | I150: PER | J150: (Col. D x E) | K150: RESPONSE | L150: (Col. F x G) | M150: KEEPERS | N150: RECORD- | O150: (Col. I x J)
I151: RESPONDENT | N151: KEEPER
A152: (A) | B152: (B) | G152: (C) | H152: (D) | I152: (E) | J152: (F) | K152: (G) | L152: (H) | M152: (I) | N152: (J) | O152: (K)
J153: =SUM(H153*I153) -> 0.00 | L153: =SUM(J153*K153) -> 0.00 | O153: =SUM(M153*N153) -> 0.00
J154: 0.00 | L154: 0.00 | O154: 0.00
J155: 0.00 | L155: 0.00 | O155: 0.00
J156: 0.00 | L156: 0.00 | O156: 0.00
J157: 0.00 | L157: 0.00 | O157: 0.00
J158: 0.00 | L158: 0.00 | O158: 0.00
B159: SUBTOTAL | J159: =SUM(J153:J158) -> 0.00 | L159: =SUM(L153:L158) -> 0.00 | M159: =SUM(M153:M158) -> 0 | O159: =SUM(O153:O158) -> 0.00
A163: INSTRUCTIONS: Use this form when a single information collection document involves multiple reporting and recordkeeping requirements. The totals of the figures in cols. should be entered in item 13 of OMB-83-1: cols. (D) &/or (I) = 13a (respondent is only counted once); cols. F & I = 13b; cols. H & K = 13c. (F)Total/(D)Total = (E)Average (H)Total/(F)Total = (G)Average (K)Total/(I)Total = (J)Average NOTE: The columns will calculate automatically. If Col. E's response is something other than annually, i.e., 1/6 years, list as "1/6" & decimal will display. | I163: TITLE OF INFORMATION COLLECTION DOCUMENT | N163: OMB NO.
N165: 0563-New
N168: DATE PREPARED
A172: IDENTIFICATION OF REPORTING OR RECORDKEEPING REQUIREMENT | H172: ANNUAL BURDEN
H174: REPORTS | M174: RECORDS
O176: TOTAL
G177: FORMS NO (S) | H177: NO. OF | I177: NO OF | J177: TOTAL ANNUAL | K177: HOURS | L177: TOTAL | M177: NO. OF | N177: ANNUAL | O177: RECORD-
A178: SECTION OF | B178: DESCRIPTION | G178: (If "none" | H178: RESPONDENTS | I178: RESPONSES | J178: RESPONSES | K178: PER | L178: HOURS | M178: RECORD- | N178: HOURS PER | O178: KEEPING HOURS
A179: REGS. | G179: so state) | I179: PER | J179: (Col. D x E) | K179: RESPONSE | L179: (Col. F x G) | M179: KEEPERS | N179: RECORD- | O179: (Col. I x J)
I180: RESPONDENT | N180: KEEPER
A181: (A) | B181: (B) | G181: (C) | H181: (D) | I181: (E) | J181: (F) | K181: (G) | L181: (H) | M181: (I) | N181: (J) | O181: (K)
J182: =SUM(H182*I182) -> 0.00 | L182: =SUM(J182*K182) -> 0.00 | O182: =SUM(M182*N182) -> 0.00
J183: 0.00 | L183: 0.00 | O183: 0.00
J184: 0.00 | L184: 0.00 | O184: 0.00
J185: 0.00 | L185: 0.00 | O185: 0.00
J186: 0.00 | L186: 0.00 | O186: 0.00
J187: 0.00 | L187: 0.00 | O187: 0.00
B188: SUBTOTAL | J188: =SUM(J182:J187) -> 0.00 | L188: =SUM(L182:L187) -> 0.00 | M188: =SUM(M182:M187) -> 0 | O188: =SUM(O182:O187) -> 0.00
A192: INSTRUCTIONS: Use this form when a single information collection document involves multiple reporting and recordkeeping requirements. The totals of the figures in cols. should be entered in item 13 of OMB-83-1: cols. (D) &/or (I) = 13a (respondent is only counted once); cols. F & I = 13b; cols. H & K = 13c. (F)Total/(D)Total = (E)Average (H)Total/(F)Total = (G)Average (K)Total/(I)Total = (J)Average NOTE: The columns will calculate automatically. If Col. E's response is something other than annually, i.e., 1/6 years, list as "1/6" & decimal will display. | I192: TITLE OF INFORMATION COLLECTION DOCUMENT | N192: OMB NO.
N194: 0581-
N197: DATE PREPARED
A201: IDENTIFICATION OF REPORTING OR RECORDKEEPING REQUIREMENT | H201: ANNUAL BURDEN
H203: REPORTS | M203: RECORDS
O205: TOTAL
G206: FORMS NO (S) | H206: NO. OF | I206: NO OF | J206: TOTAL ANNUAL | K206: HOURS | L206: TOTAL | M206: NO. OF | N206: ANNUAL | O206: RECORD-
A207: SECTION OF | B207: DESCRIPTION | G207: (If "none" | H207: RESPONDENTS | I207: RESPONSES | J207: RESPONSES | K207: PER | L207: HOURS | M207: RECORD- | N207: HOURS PER | O207: KEEPING HOURS
A208: REGS. | G208: so state) | I208: PER | J208: (Col. D x E) | K208: RESPONSE | L208: (Col. F x G) | M208: KEEPERS | N208: RECORD- | O208: (Col. I x J)
I209: RESPONDENT | N209: KEEPER
A210: (A) | B210: (B) | G210: (C) | H210: (D) | I210: (E) | J210: (F) | K210: (G) | L210: (H) | M210: (I) | N210: (J) | O210: (K)
J211: =SUM(H211*I211) -> 0.00 | L211: =SUM(J211*K211) -> 0.00 | O211: =SUM(M211*N211) -> 0.00
J212: 0.00 | L212: 0.00 | O212: 0.00
J213: 0.00 | L213: 0.00 | O213: 0.00
J214: 0.00 | L214: 0.00 | O214: 0.00
J215: 0.00 | L215: 0.00 | O215: 0.00
J216: 0.00 | L216: 0.00 | O216: 0.00
B217: SUBTOTAL | J217: =SUM(J211:J216) -> 0.00 | L217: =SUM(L211:L216) -> 0.00 | M217: =SUM(M211:M216) -> 0 | O217: =SUM(O211:O216) -> 0.00
A221: INSTRUCTIONS: Use this form when a single information collection document involves multiple reporting and recordkeeping requirements. The totals of the figures in cols. should be entered in item 13 of OMB-83-1: cols. (D) &/or (I) = 13a (respondent is only counted once); cols. F & I = 13b; cols. H & K = 13c. (F)Total/(D)Total = (E)Average (H)Total/(F)Total = (G)Average (K)Total/(I)Total = (J)Average NOTE: The columns will calculate automatically. If Col. E's response is something other than annually, i.e., 1/6 years, list as "1/6" & decimal will display. | I221: TITLE OF INFORMATION COLLECTION DOCUMENT | N221: OMB NO.
N223: 0581-
N226: DATE PREPARED
A230: IDENTIFICATION OF REPORTING OR RECORDKEEPING REQUIREMENT | H230: ANNUAL BURDEN
H232: REPORTS | M232: RECORDS
O234: TOTAL
G235: FORMS NO (S) | H235: NO. OF | I235: NO OF | J235: TOTAL ANNUAL | K235: HOURS | L235: TOTAL | M235: NO. OF | N235: ANNUAL | O235: RECORD-
A236: SECTION OF | B236: DESCRIPTION | G236: (If "none" | H236: RESPONDENTS | I236: RESPONSES | J236: RESPONSES | K236: PER | L236: HOURS | M236: RECORD- | N236: HOURS PER | O236: KEEPING HOURS
A237: REGS. | G237: so state) | I237: PER | J237: (Col. D x E) | K237: RESPONSE | L237: (Col. F x G) | M237: KEEPERS | N237: RECORD- | O237: (Col. I x J)
I238: RESPONDENT | N238: KEEPER
A239: (A) | B239: (B) | G239: (C) | H239: (D) | I239: (E) | J239: (F) | K239: (G) | L239: (H) | M239: (I) | N239: (J) | O239: (K)
J240: =SUM(H240*I240) -> 0.00 | L240: =SUM(J240*K240) -> 0.00 | O240: =SUM(M240*N240) -> 0.00
J241: 0.00 | L241: 0.00 | O241: 0.00
J242: 0.00 | L242: 0.00 | O242: 0.00
J243: 0.00 | L243: 0.00 | O243: 0.00
J244: 0.00 | L244: 0.00 | O244: 0.00
J245: 0.00 | L245: 0.00 | O245: 0.00
B246: SUBTOTAL | J246: =SUM(J240:J245) -> 0.00 | L246: =SUM(L240:L245) -> 0.00 | M246: =SUM(M240:M245) -> 0 | O246: =SUM(O240:O245) -> 0.00
A250: INSTRUCTIONS: Use this form when a single information collection document involves multiple reporting and recordkeeping requirements. The totals of the figures in cols. should be entered in item 13 of OMB-83-1: cols. (D) &/or (I) = 13a (respondent is only counted once); cols. F & I = 13b; cols. H & K = 13c. (F)Total/(D)Total = (E)Average (H)Total/(F)Total = (G)Average (K)Total/(I)Total = (J)Average NOTE: The columns will calculate automatically. If Col. E's response is something other than annually, i.e., 1/6 years, list as "1/6" & decimal will display. | I250: TITLE OF INFORMATION COLLECTION DOCUMENT | N250: OMB NO.
N252: 0581-
N255: DATE PREPARED
A259: IDENTIFICATION OF REPORTING OR RECORDKEEPING REQUIREMENT | H259: ANNUAL BURDEN
H261: REPORTS | M261: RECORDS
O263: TOTAL
G264: FORMS NO (S) | H264: NO. OF | I264: NO OF | J264: TOTAL ANNUAL | K264: HOURS | L264: TOTAL | M264: NO. OF | N264: ANNUAL | O264: RECORD-
A265: SECTION OF | B265: DESCRIPTION | G265: (If "none" | H265: RESPONDENTS | I265: RESPONSES | J265: RESPONSES | K265: PER | L265: HOURS | M265: RECORD- | N265: HOURS PER | O265: KEEPING HOURS
A266: REGS. | G266: so state) | I266: PER | J266: (Col. D x E) | K266: RESPONSE | L266: (Col. F x G) | M266: KEEPERS | N266: RECORD- | O266: (Col. I x J)
I267: RESPONDENT | N267: KEEPER
A268: (A) | B268: (B) | G268: (C) | H268: (D) | I268: (E) | J268: (F) | K268: (G) | L268: (H) | M268: (I) | N268: (J) | O268: (K)
J269: =SUM(H269*I269) -> 0.00 | L269: =SUM(J269*K269) -> 0.00 | O269: =SUM(M269*N269) -> 0.00
J270: 0.00 | L270: 0.00 | O270: 0.00
J271: 0.00 | L271: 0.00 | O271: 0.00
J272: 0.00 | L272: 0.00 | O272: 0.00
J273: 0.00 | L273: 0.00 | O273: 0.00
J274: 0.00 | L274: 0.00 | O274: 0.00
B275: SUBTOTAL | J275: =SUM(J269:J274) -> 0.00 | L275: =SUM(L269:L274) -> 0.00 | M275: =SUM(M269:M274) -> 0 | O275: =SUM(O269:O274) -> 0.00
A279: INSTRUCTIONS: Use this form when a single information collection document involves multiple reporting and recordkeeping requirements. The totals of the figures in cols. should be entered in item 13 of OMB-83-1: cols. (D) &/or (I) = 13a (respondent is only counted once); cols. F & I = 13b; cols. H & K = 13c. (F)Total/(D)Total = (E)Average (H)Total/(F)Total = (G)Average (K)Total/(I)Total = (J)Average NOTE: The columns will calculate automatically. If Col. E's response is something other than annually, i.e., 1/6 years, list as "1/6" & decimal will display. | I279: TITLE OF INFORMATION COLLECTION DOCUMENT | N279: OMB NO.
N281: 0581-
N284: DATE PREPARED
A288: IDENTIFICATION OF REPORTING OR RECORDKEEPING REQUIREMENT | H288: ANNUAL BURDEN
H290: REPORTS | M290: RECORDS
O292: TOTAL
G293: FORMS NO (S) | H293: NO. OF | I293: NO OF | J293: TOTAL ANNUAL | K293: HOURS | L293: TOTAL | M293: NO. OF | N293: ANNUAL | O293: RECORD-
A294: SECTION OF | B294: DESCRIPTION | G294: (If "none" | H294: RESPONDENTS | I294: RESPONSES | J294: RESPONSES | K294: PER | L294: HOURS | M294: RECORD- | N294: HOURS PER | O294: KEEPING HOURS
A295: REGS. | G295: so state) | I295: PER | J295: (Col. D x E) | K295: RESPONSE | L295: (Col. F x G) | M295: KEEPERS | N295: RECORD- | O295: (Col. I x J)
I296: RESPONDENT | N296: KEEPER
A297: (A) | B297: (B) | G297: (C) | H297: (D) | I297: (E) | J297: (F) | K297: (G) | L297: (H) | M297: (I) | N297: (J) | O297: (K)
J298: =SUM(H298*I298) -> 0.00 | L298: =SUM(J298*K298) -> 0.00 | O298: =SUM(M298*N298) -> 0.00
J299: 0.00 | L299: 0.00 | O299: 0.00
J300: 0.00 | L300: 0.00 | O300: 0.00
J301: 0.00 | L301: 0.00 | O301: 0.00
J302: 0.00 | L302: 0.00 | O302: 0.00
J303: 0.00 | L303: 0.00 | O303: 0.00
B304: SUBTOTAL | J304: =SUM(J298:J303) -> 0.00 | L304: =SUM(L298:L303) -> 0.00 | M304: =SUM(M298:M303) -> 0 | O304: =SUM(O298:O303) -> 0.00
A308: INSTRUCTIONS: Use this form when a single information collection document involves multiple reporting and recordkeeping requirements. The totals of the figures in cols. should be entered in item 13 of OMB-83-1: cols. (D) &/or (I) = 13a (respondent is only counted once); cols. F & I = 13b; cols. H & K = 13c. (F)Total/(D)Total = (E)Average (H)Total/(F)Total = (G)Average (K)Total/(I)Total = (J)Average NOTE: The columns will calculate automatically. If Col. E's response is something other than annually, i.e., 1/6 years, list as "1/6" & decimal will display. | I308: TITLE OF INFORMATION COLLECTION DOCUMENT | N308: OMB NO.
N310: 0581-
N313: DATE PREPARED
A317: IDENTIFICATION OF REPORTING OR RECORDKEEPING REQUIREMENT | H317: ANNUAL BURDEN
... 896 more rows
